[Event "Titled Tuesday Blitz March 08 Late 2022"]
[White "Nakamura, Hikaru"]
[Black "Dobrov, Vladimir"]
[WhiteFideId "2016192"]
[BlackFideId "4136594"]
[WhiteElo "2850"]
[BlackElo "2614"]
[Result "1/2-1/2"]
[Round "06"]
[TimeControl "180+1"]
[Date "2022.03.08"]
[WhiteClock "0:00:08"]
[BlackClock "0:00:06"]

1. Nf3 {[%clk 0:03:00]}  d5 {[%clk 0:02:59]} 2. b3 {[%clk 0:02:59]}  f6 {[%clk 0:02:58]} 3. d4 {[%clk 0:02:58]}  c5 {[%clk 0:02:58]} 4. e3 {[%clk 0:02:58]}  Nc6 {[%clk 0:02:59]} 5. Bb2 {[%clk 0:02:58]}  cxd4 {[%clk 0:02:59]} 6. exd4 {[%clk 0:02:57]}  Bg4 {[%clk 0:02:59]} 7. Be2 {[%clk 0:02:58]}  e6 {[%clk 0:02:59]} 8. Nbd2 {[%clk 0:02:58]}  Bd6 {[%clk 0:02:59]} 9. c4 {[%clk 0:02:58]}  Nge7 {[%clk 0:02:59]} 10. O-O {[%clk 0:02:58]}  Qd7 {[%clk 0:02:59]} 11. Re1 {[%clk 0:02:58]}  O-O {[%clk 0:02:58]} 12. a3 {[%clk 0:02:57]}  Bh5 {[%clk 0:02:51]} 13. b4 {[%clk 0:02:52]}  a6 {[%clk 0:02:45]} 14. Qb3 {[%clk 0:02:51]}  Kh8 {[%clk 0:02:16]} 15. c5 {[%clk 0:02:47]}  Bc7 {[%clk 0:02:16]} 16. a4 {[%clk 0:02:47]}  Rae8 {[%clk 0:02:09]} 17. b5 {[%clk 0:02:47]}  Nd8 {[%clk 0:02:05]} 18. Ba3 {[%clk 0:02:45]}  Nf7 {[%clk 0:01:53]} 19. bxa6 {[%clk 0:02:42]}  bxa6 {[%clk 0:01:53]} 20. Bxa6 {[%clk 0:02:43]}  e5 {[%clk 0:01:50]} 21. Bb5 {[%clk 0:02:32]}  Nc6 {[%clk 0:01:47]} 22. Bxc6 {[%clk 0:02:20]}  Qxc6 {[%clk 0:01:47]} 23. Qb5 {[%clk 0:02:21]}  Nd8 {[%clk 0:01:32]} 24. dxe5 {[%clk 0:01:52]}  fxe5 {[%clk 0:01:31]} 25. Bb2 {[%clk 0:01:53]}  d4 {[%clk 0:01:23]} 26. Qxc6 {[%clk 0:01:49]}  Nxc6 {[%clk 0:01:23]} 27. Ng5 {[%clk 0:01:48]}  Ba5 {[%clk 0:01:13]} 28. Nge4 {[%clk 0:01:45]}  Rb8 {[%clk 0:01:11]} 29. Ba3 {[%clk 0:01:44]}  Bg6 {[%clk 0:01:09]} 30. Red1 {[%clk 0:01:44]}  h6 {[%clk 0:01:02]} 31. f3 {[%clk 0:01:44]}  Bc3 {[%clk 0:00:56]} 32. Rac1 {[%clk 0:01:40]}  Bxe4 {[%clk 0:00:39]} 33. Nxe4 {[%clk 0:01:39]}  Rb3 {[%clk 0:00:39]} 34. Nxc3 {[%clk 0:01:22]}  dxc3 {[%clk 0:00:39]} 35. Ra1 {[%clk 0:01:23]}  Nd4 {[%clk 0:00:39]} 36. Bc1 {[%clk 0:01:16]}  c2 {[%clk 0:00:33]} 37. Re1 {[%clk 0:01:16]}  Rb1 {[%clk 0:00:28]} 38. Be3 {[%clk 0:01:15]}  Rfb8 {[%clk 0:00:25]} 39. Kf2 {[%clk 0:01:09]}  R8b2 {[%clk 0:00:23]} 40. Bc1 {[%clk 0:00:59]}  Rb3 {[%clk 0:00:24]} 41. Ra2 {[%clk 0:00:55]}  Rd3 {[%clk 0:00:22]} 42. c6 {[%clk 0:00:55]}  Nxc6 {[%clk 0:00:21]} 43. Rxc2 {[%clk 0:00:55]}  Nb4 {[%clk 0:00:19]} 44. Rc8+ {[%clk 0:00:55]}  Kh7 {[%clk 0:00:19]} 45. Rxe5 {[%clk 0:00:25]}  Rd7 {[%clk 0:00:17]} 46. Rb5 {[%clk 0:00:12]}  Rxc1 {[%clk 0:00:15]} 47. Rxc1 {[%clk 0:00:10]}  Nd3+ {[%clk 0:00:15]} 48. Ke3 {[%clk 0:00:11]}  Nxc1 {[%clk 0:00:16]} 49. a5 {[%clk 0:00:12]}  Rd3+ {[%clk 0:00:12]} 50. Ke4 {[%clk 0:00:13]}  Ra3 {[%clk 0:00:13]} 51. Kd5 {[%clk 0:00:13]}  Ne2 {[%clk 0:00:13]} 52. Rc5 {[%clk 0:00:08]}  Ra2 {[%clk 0:00:07]} 53. g3 {[%clk 0:00:07]}  Ng1 {[%clk 0:00:07]} 54. f4 {[%clk 0:00:07]}  Nf3 {[%clk 0:00:07]} 55. h4 {[%clk 0:00:06]}  Kg6 {[%clk 0:00:07]} 56. Kc6 {[%clk 0:00:06]}  Nd4+ {[%clk 0:00:04]} 57. Kb6 {[%clk 0:00:05]}  Rb2+ {[%clk 0:00:05]} 58. Ka7 {[%clk 0:00:05]}  Ra2 {[%clk 0:00:05]} 59. Kb6 {[%clk 0:00:05]}  Kf6 {[%clk 0:00:06]} 60. a6 {[%clk 0:00:05]}  Rb2+ {[%clk 0:00:06]} 61. Ka7 {[%clk 0:00:05]}  Ra2 {[%clk 0:00:07]} 62. Kb7 {[%clk 0:00:05]}  Rb2+ {[%clk 0:00:07]} 63. Ka8 {[%clk 0:00:04]}  Ra2 {[%clk 0:00:08]} 64. a7 {[%clk 0:00:03]}  Ke6 {[%clk 0:00:07]} 65. Kb7 {[%clk 0:00:03]}  Rb2+ {[%clk 0:00:07]} 66. Kc8 {[%clk 0:00:03]}  Ra2 {[%clk 0:00:08]} 67. Kb7 {[%clk 0:00:04]}  Rb2+ {[%clk 0:00:08]} 68. Kc8 {[%clk 0:00:04]}  Ra2 {[%clk 0:00:08]} 69. Rc7 {[%clk 0:00:05]}  Nb5 {[%clk 0:00:08]} 70. Rxg7 {[%clk 0:00:05]}  Nxa7+ {[%clk 0:00:08]} 71. Kb7 {[%clk 0:00:06]}  Nb5 {[%clk 0:00:09]} 72. Rg6+ {[%clk 0:00:07]}  Kf5 {[%clk 0:00:08]} 73. Rxh6 {[%clk 0:00:08]}  Nd4 {[%clk 0:00:09]} 74. Rh5+ {[%clk 0:00:08]}  Ke4 {[%clk 0:00:08]} 75. Rg5 {[%clk 0:00:08]}  Nf5 {[%clk 0:00:08]} 76. h5 {[%clk 0:00:09]}  Rg2 {[%clk 0:00:07]} 77. g4 {[%clk 0:00:09]}  Ne3 {[%clk 0:00:08]} 78. h6 {[%clk 0:00:09]}  Rh2 {[%clk 0:00:07]} 79. Rh5 {[%clk 0:00:09]}  Rb2+ {[%clk 0:00:05]} 80. Kc8 {[%clk 0:00:09]}  Rc2+ {[%clk 0:00:04]} 81. Kd8 {[%clk 0:00:10]}  Rd2+ {[%clk 0:00:04]} 82. Ke7 {[%clk 0:00:11]}  Ra2 {[%clk 0:00:04]} 83. h7 {[%clk 0:00:11]}  Ra7+ {[%clk 0:00:05]} 84. Kf6 {[%clk 0:00:10]}  Nxg4+ {[%clk 0:00:05]} 85. Kg5 {[%clk 0:00:11]}  Ra5+ {[%clk 0:00:04]} 86. Kh4 {[%clk 0:00:11]}  Rxh5+ {[%clk 0:00:05]} 87. Kxh5 {[%clk 0:00:11]}  Nf6+ {[%clk 0:00:05]} 88. Kg6 {[%clk 0:00:07]}  Nxh7 {[%clk 0:00:05]} 89. f5 {[%clk 0:00:08]}  Kf4 {[%clk 0:00:05]} 90. Kxh7 {[%clk 0:00:08]}  Kxf5 {[%clk 0:00:06]} 1/2-1/2


[Site "https://www.chess.com"]

[Event "Titled Tuesday Blitz March 08 Late 2022"]
[White "Nikologorsky, Matfei"]
[Black "Rorrer, Grayson"]
[WhiteFideId "24102474"]
[BlackFideId "30944996"]
[WhiteElo "2326"]
[BlackElo "2701"]
[Result "0-1"]
[Round "06"]
[TimeControl "180+1"]
[Date "2022.03.09"]
[WhiteClock "0:00:15"]
[BlackClock "0:01:04"]

1. e4 {[%clk 0:03:00]}  e5 {[%clk 0:02:58]} 2. Nf3 {[%clk 0:03:00]}  Nc6 {[%clk 0:02:58]} 3. Bb5 {[%clk 0:03:00]}  a6 {[%clk 0:02:58]} 4. Ba4 {[%clk 0:03:00]}  g6 {[%clk 0:02:58]} 5. O-O {[%clk 0:02:55]}  Bg7 {[%clk 0:02:57]} 6. c3 {[%clk 0:02:50]}  Nge7 {[%clk 0:02:55]} 7. d4 {[%clk 0:02:45]}  exd4 {[%clk 0:02:56]} 8. cxd4 {[%clk 0:02:46]}  b5 {[%clk 0:02:56]} 9. Bc2 {[%clk 0:02:39]}  d6 {[%clk 0:02:55]} 10. h3 {[%clk 0:02:32]}  O-O {[%clk 0:02:55]} 11. a4 {[%clk 0:02:31]}  Bb7 {[%clk 0:02:52]} 12. Nc3 {[%clk 0:02:27]}  b4 {[%clk 0:02:48]} 13. Ne2 {[%clk 0:02:26]}  Na5 {[%clk 0:02:48]} 14. Be3 {[%clk 0:02:14]}  Rc8 {[%clk 0:02:43]} 15. Ng3 {[%clk 0:01:53]}  c5 {[%clk 0:02:34]} 16. Rc1 {[%clk 0:01:52]}  Nc4 {[%clk 0:02:28]} 17. Bb3 {[%clk 0:01:42]}  Nxe3 {[%clk 0:02:21]} 18. fxe3 {[%clk 0:01:43]}  h6 {[%clk 0:02:21]} 19. Qd3 {[%clk 0:01:33]}  Kh7 {[%clk 0:01:57]} 20. Nh2 {[%clk 0:01:18]}  cxd4 {[%clk 0:01:44]} 21. Rxc8 {[%clk 0:01:06]}  Bxc8 {[%clk 0:01:25]} 22. exd4 {[%clk 0:01:05]}  Qb6 {[%clk 0:01:26]} 23. Ne2 {[%clk 0:00:52]}  f5 {[%clk 0:01:22]} 24. Kh1 {[%clk 0:00:47]}  fxe4 {[%clk 0:01:15]} 25. Qxe4 {[%clk 0:00:47]}  Nf5 {[%clk 0:01:15]} 26. Nf3 {[%clk 0:00:20]}  Bd7 {[%clk 0:01:05]} 27. Nf4 {[%clk 0:00:15]}  Ng3+ {[%clk 0:01:04]} 0-1


[Site "https://www.chess.com"]

[Event "Titled Tuesday Blitz March 08 Late 2022"]
[White "Ozates, Tuna"]
[Black "Csonka, Balazs"]
[WhiteFideId "6354521"]
[BlackFideId "742910"]
[WhiteElo "1887"]
[BlackElo "2404"]
[Result "0-1"]
[Round "06"]
[TimeControl "180+1"]
[Date "2022.03.09"]
[WhiteClock "0:00:13"]
[BlackClock "0:00:04"]

1. Nf3 {[%clk 0:03:00]}  Nf6 {[%clk 0:02:58]} 2. c4 {[%clk 0:03:00]}  b6 {[%clk 0:02:58]} 3. g3 {[%clk 0:02:59]}  Bb7 {[%clk 0:02:58]} 4. Bg2 {[%clk 0:03:00]}  e6 {[%clk 0:02:58]} 5. O-O {[%clk 0:03:00]}  Be7 {[%clk 0:02:58]} 6. Nc3 {[%clk 0:02:59]}  O-O {[%clk 0:02:58]} 7. Re1 {[%clk 0:02:59]}  d5 {[%clk 0:02:52]} 8. cxd5 {[%clk 0:03:00]}  Nxd5 {[%clk 0:02:52]} 9. e4 {[%clk 0:02:57]}  Nxc3 {[%clk 0:02:52]} 10. bxc3 {[%clk 0:02:57]}  Nc6 {[%clk 0:02:40]} 11. d4 {[%clk 0:02:57]}  Na5 {[%clk 0:02:41]} 12. Ne5 {[%clk 0:02:53]}  Bd6 {[%clk 0:01:49]} 13. Qg4 {[%clk 0:02:34]}  Qe7 {[%clk 0:01:41]} 14. Bh6 {[%clk 0:02:28]}  f6 {[%clk 0:01:36]} 15. Nd3 {[%clk 0:02:26]}  e5 {[%clk 0:01:18]} 16. Rad1 {[%clk 0:02:07]}  Bc8 {[%clk 0:01:11]} 17. Qh5 {[%clk 0:01:54]}  gxh6 {[%clk 0:01:08]} 18. f4 {[%clk 0:01:51]}  Qg7 {[%clk 0:00:57]} 19. Bf3 {[%clk 0:01:42]}  Nc4 {[%clk 0:00:48]} 20. f5 {[%clk 0:01:31]}  Bd7 {[%clk 0:00:39]} 21. Nf2 {[%clk 0:01:30]}  Be8 {[%clk 0:00:32]} 22. Qh3 {[%clk 0:01:28]}  Kh8 {[%clk 0:00:31]} 23. Ng4 {[%clk 0:01:17]}  h5 {[%clk 0:00:31]} 24. Nf2 {[%clk 0:01:17]}  Qg5 {[%clk 0:00:31]} 25. Rd3 {[%clk 0:00:57]}  Bf7 {[%clk 0:00:26]} 26. Qf1 {[%clk 0:00:54]}  Nd2 {[%clk 0:00:21]} 27. Qe2 {[%clk 0:00:55]}  Nxf3+ {[%clk 0:00:22]} 28. Qxf3 {[%clk 0:00:51]}  Rae8 {[%clk 0:00:21]} 29. d5 {[%clk 0:00:50]}  Bc5 {[%clk 0:00:20]} 30. Kg2 {[%clk 0:00:50]}  Bxf2 {[%clk 0:00:19]} 31. Qxf2 {[%clk 0:00:49]}  h4 {[%clk 0:00:18]} 32. Kh1 {[%clk 0:00:44]}  Rg8 {[%clk 0:00:17]} 33. gxh4 {[%clk 0:00:35]}  Qf4 {[%clk 0:00:12]} 34. Rf3 {[%clk 0:00:34]}  Qh6 {[%clk 0:00:12]} 35. c4 {[%clk 0:00:30]}  Rg7 {[%clk 0:00:11]} 36. Rg1 {[%clk 0:00:20]}  Rxg1+ {[%clk 0:00:10]} 37. Qxg1 {[%clk 0:00:20]}  Qxh4 {[%clk 0:00:07]} 38. Qe3 {[%clk 0:00:13]}  Rg8 {[%clk 0:00:07]} 39. Rh3 {[%clk 0:00:08]}  Qg5 {[%clk 0:00:04]} 40. Qxg5 {[%clk 0:00:07]}  Rxg5 {[%clk 0:00:03]} 41. Ra3 {[%clk 0:00:07]}  a5 {[%clk 0:00:02]} 42. c5 {[%clk 0:00:08]}  bxc5 {[%clk 0:00:03]} 43. Rxa5 {[%clk 0:00:08]}  Rg4 {[%clk 0:00:03]} 44. Ra4 {[%clk 0:00:07]}  Bxd5 {[%clk 0:00:02]} 45. h3 {[%clk 0:00:02]}  Rxe4 {[%clk 0:00:02]} 46. Rxe4 {[%clk 0:00:03]}  Bxe4+ {[%clk 0:00:02]} 47. Kg1 {[%clk 0:00:04]}  Bxf5 {[%clk 0:00:03]} 48. a4 {[%clk 0:00:03]}  Be6 {[%clk 0:00:04]} 49. a5 {[%clk 0:00:04]}  Bd5 {[%clk 0:00:05]} 50. Kf2 {[%clk 0:00:04]}  Kg7 {[%clk 0:00:05]} 51. Kg3 {[%clk 0:00:05]}  Kf7 {[%clk 0:00:06]} 52. Kg4 {[%clk 0:00:06]}  Kg6 {[%clk 0:00:06]} 53. a6 {[%clk 0:00:06]}  h5+ {[%clk 0:00:06]} 54. Kh4 {[%clk 0:00:07]}  Kf5 {[%clk 0:00:07]} 55. a7 {[%clk 0:00:07]}  Ba8 {[%clk 0:00:06]} 56. Kxh5 {[%clk 0:00:07]}  c4 {[%clk 0:00:06]} 57. Kh6 {[%clk 0:00:08]}  c3 {[%clk 0:00:07]} 58. h4 {[%clk 0:00:09]}  c2 {[%clk 0:00:07]} 59. h5 {[%clk 0:00:09]}  c1=Q+ {[%clk 0:00:08]} 60. Kg7 {[%clk 0:00:10]}  Qg5+ {[%clk 0:00:08]} 61. Kf7 {[%clk 0:00:10]}  Qxh5+ {[%clk 0:00:08]} 62. Ke7 {[%clk 0:00:11]}  Qe2 {[%clk 0:00:08]} 63. Kd7 {[%clk 0:00:11]}  Qc4 {[%clk 0:00:08]} 64. Kc8 {[%clk 0:00:12]}  Qc6 {[%clk 0:00:05]} 65. Kd8 {[%clk 0:00:12]}  Qb7 {[%clk 0:00:05]} 66. Kd7 {[%clk 0:00:12]}  c5+ {[%clk 0:00:04]} 67. Kd6 {[%clk 0:00:12]}  c4 {[%clk 0:00:04]} 68. Kc5 {[%clk 0:00:12]}  c3 {[%clk 0:00:04]} 69. Kc4 {[%clk 0:00:12]}  Qc7+ {[%clk 0:00:03]} 70. Kd3 {[%clk 0:00:13]}  c2 {[%clk 0:00:03]} 71. Ke2 {[%clk 0:00:13]}  Ke6 {[%clk 0:00:03]} 72. Kd3 {[%clk 0:00:13]}  f5 {[%clk 0:00:04]} 73. Ke2 {[%clk 0:00:14]}  Qxa7 {[%clk 0:00:04]} 74. Kd2 {[%clk 0:00:14]}  Qc7 {[%clk 0:00:05]} 75. Kd3 {[%clk 0:00:13]}  e4+ {[%clk 0:00:05]} 76. Ke2 {[%clk 0:00:13]}  Ke5 {[%clk 0:00:05]} 77. Kf2 {[%clk 0:00:13]}  c1=Q {[%clk 0:00:05]} 78. Kg3 {[%clk 0:00:13]}  Q1c6 {[%clk 0:00:05]} 79. Kh4 {[%clk 0:00:13]}  Qg6 {[%clk 0:00:04]} 0-1


[Site "https://www.chess.com"]

[Event "Titled Tuesday Blitz March 08 Late 2022"]
[White "Pichot, Alan"]
[Black "Mogranzini, Roberto"]
[WhiteFideId "110973"]
[BlackFideId "810894"]
[WhiteElo "2579"]
[BlackElo "2469"]
[Result "1-0"]
[Round "06"]
[TimeControl "180+1"]
[Date "2022.03.08"]
[WhiteClock "0:00:08"]
[BlackClock "0:00:02"]

1. d4 {[%clk 0:03:00]}  Nf6 {[%clk 0:03:00]} 2. Nf3 {[%clk 0:03:00]}  d6 {[%clk 0:03:00]} 3. c4 {[%clk 0:03:00]}  g6 {[%clk 0:03:00]} 4. Nc3 {[%clk 0:02:58]}  Bf5 {[%clk 0:03:00]} 5. Bg5 {[%clk 0:02:54]}  Bg7 {[%clk 0:03:00]} 6. e3 {[%clk 0:02:50]}  O-O {[%clk 0:03:00]} 7. Be2 {[%clk 0:02:50]}  c6 {[%clk 0:02:54]} 8. O-O {[%clk 0:02:49]}  Nbd7 {[%clk 0:02:51]} 9. Qb3 {[%clk 0:02:49]}  Rb8 {[%clk 0:02:47]} 10. Rfd1 {[%clk 0:02:47]}  Re8 {[%clk 0:02:43]} 11. h3 {[%clk 0:02:45]}  h6 {[%clk 0:02:37]} 12. Bf4 {[%clk 0:02:44]}  g5 {[%clk 0:02:35]} 13. Bh2 {[%clk 0:02:43]}  Ne4 {[%clk 0:02:21]} 14. Bd3 {[%clk 0:02:29]}  Ndf6 {[%clk 0:02:16]} 15. Qc2 {[%clk 0:02:25]}  Nxc3 {[%clk 0:02:13]} 16. Qxc3 {[%clk 0:02:26]}  Qd7 {[%clk 0:02:05]} 17. b4 {[%clk 0:02:19]}  Rbc8 {[%clk 0:02:02]} 18. a4 {[%clk 0:02:18]}  Be4 {[%clk 0:01:34]} 19. Bxe4 {[%clk 0:02:13]}  Nxe4 {[%clk 0:01:34]} 20. Qc2 {[%clk 0:02:14]}  d5 {[%clk 0:01:22]} 21. Rac1 {[%clk 0:02:08]}  Nd6 {[%clk 0:00:59]} 22. Nd2 {[%clk 0:01:50]}  Qe6 {[%clk 0:00:56]} 23. Qb3 {[%clk 0:01:45]}  Ne4 {[%clk 0:00:51]} 24. Nxe4 {[%clk 0:01:40]}  Qxe4 {[%clk 0:00:51]} 25. b5 {[%clk 0:01:40]}  Bf6 {[%clk 0:00:42]} 26. a5 {[%clk 0:01:32]}  dxc4 {[%clk 0:00:35]} 27. Rxc4 {[%clk 0:01:24]}  cxb5 {[%clk 0:00:35]} 28. Qxb5 {[%clk 0:01:20]}  a6 {[%clk 0:00:32]} 29. Qa4 {[%clk 0:01:08]}  Rxc4 {[%clk 0:00:29]} 30. Qxc4 {[%clk 0:01:00]}  Rd8 {[%clk 0:00:30]} 31. Bg3 {[%clk 0:00:57]}  Rd5 {[%clk 0:00:29]} 32. Qc8+ {[%clk 0:00:50]}  Kg7 {[%clk 0:00:29]} 33. Qxb7 {[%clk 0:00:50]}  Rxd4 {[%clk 0:00:25]} 34. Qxe4 {[%clk 0:00:31]}  Rxe4 {[%clk 0:00:26]} 35. Rd8 {[%clk 0:00:31]}  Ra4 {[%clk 0:00:26]} 36. Bc7 {[%clk 0:00:31]}  Bc3 {[%clk 0:00:20]} 37. Rd5 {[%clk 0:00:11]}  Rc4 {[%clk 0:00:15]} 38. Bb6 {[%clk 0:00:11]}  e6 {[%clk 0:00:13]} 39. Rd7 {[%clk 0:00:08]}  Ra4 {[%clk 0:00:13]} 40. Rc7 {[%clk 0:00:07]}  Bxa5 {[%clk 0:00:12]} 41. Bxa5 {[%clk 0:00:06]}  Rxa5 {[%clk 0:00:12]} 42. Ra7 {[%clk 0:00:07]}  Ra2 {[%clk 0:00:12]} 43. g4 {[%clk 0:00:07]}  a5 {[%clk 0:00:12]} 44. Kg2 {[%clk 0:00:08]}  a4 {[%clk 0:00:12]} 45. Kg3 {[%clk 0:00:08]}  a3 {[%clk 0:00:13]} 46. Ra6 {[%clk 0:00:08]}  Ra1 {[%clk 0:00:13]} 47. Ra7 {[%clk 0:00:08]}  Kf6 {[%clk 0:00:12]} 48. Kg2 {[%clk 0:00:08]}  a2 {[%clk 0:00:12]} 49. Ra6 {[%clk 0:00:06]}  Ke5 {[%clk 0:00:12]} 50. Ra7 {[%clk 0:00:07]}  f5 {[%clk 0:00:11]} 51. gxf5 {[%clk 0:00:07]}  exf5 {[%clk 0:00:12]} 52. Ra5+ {[%clk 0:00:07]}  Ke4 {[%clk 0:00:12]} 53. Ra8 {[%clk 0:00:07]}  Kd3 {[%clk 0:00:13]} 54. Rd8+ {[%clk 0:00:07]}  Ke2 {[%clk 0:00:13]} 55. Ra8 {[%clk 0:00:08]}  h5 {[%clk 0:00:12]} 56. Ra5 {[%clk 0:00:06]}  h4 {[%clk 0:00:09]} 57. Ra8 {[%clk 0:00:05]}  Kd3 {[%clk 0:00:07]} 58. Ra3+ {[%clk 0:00:04]}  Ke4 {[%clk 0:00:07]} 59. Ra4+ {[%clk 0:00:05]}  Ke5 {[%clk 0:00:07]} 60. Ra5+ {[%clk 0:00:05]}  Kf6 {[%clk 0:00:07]} 61. Ra6+ {[%clk 0:00:05]}  Ke5 {[%clk 0:00:08]} 62. Ra4 {[%clk 0:00:05]}  g4 {[%clk 0:00:06]} 63. hxg4 {[%clk 0:00:04]}  fxg4 {[%clk 0:00:07]} 64. Ra5+ {[%clk 0:00:04]}  Ke4 {[%clk 0:00:06]} 65. Ra4+ {[%clk 0:00:05]}  Kd3 {[%clk 0:00:06]} 66. e4 {[%clk 0:00:06]}  Re1 {[%clk 0:00:05]} 67. Rxa2 {[%clk 0:00:05]}  Rxe4 {[%clk 0:00:03]} 68. Ra3+ {[%clk 0:00:06]}  Kd4 {[%clk 0:00:03]} 69. Ra4+ {[%clk 0:00:06]}  Ke5 {[%clk 0:00:04]} 70. Ra5+ {[%clk 0:00:07]}  Kf4 {[%clk 0:00:04]} 71. Ra8 {[%clk 0:00:07]}  h3+ {[%clk 0:00:03]} 72. Kh2 {[%clk 0:00:07]}  Re2 {[%clk 0:00:01]} 73. Rf8+ {[%clk 0:00:07]}  Kg5 {[%clk 0:00:02]} 74. Kg3 {[%clk 0:00:08]} 1-0


[Site "https://www.chess.com"]

[Event "Titled Tuesday Blitz March 08 Late 2022"]
[White "Qashashvili, Alexandre"]
[Black "Mangialardo, Tiago Carvalho"]
[WhiteFideId "13600842"]
[BlackFideId "2130718"]
[WhiteElo "2316"]
[BlackElo "2092"]
[Result "1-0"]
[Round "06"]
[TimeControl "180+1"]
[Date "2022.03.09"]
[WhiteClock "0:01:14"]
[BlackClock "0:00:02"]

1. e4 {[%clk 0:02:54]}  e5 {[%clk 0:02:36]} 2. Nf3 {[%clk 0:02:54]}  Nc6 {[%clk 0:02:36]} 3. Nc3 {[%clk 0:02:52]}  Nf6 {[%clk 0:02:35]} 4. d4 {[%clk 0:02:53]}  exd4 {[%clk 0:02:30]} 5. Nxd4 {[%clk 0:02:54]}  Nxd4 {[%clk 0:02:29]} 6. Qxd4 {[%clk 0:02:53]}  d6 {[%clk 0:02:27]} 7. Bg5 {[%clk 0:02:51]}  Be7 {[%clk 0:02:27]} 8. Bc4 {[%clk 0:02:51]}  O-O {[%clk 0:02:27]} 9. O-O {[%clk 0:02:51]}  h6 {[%clk 0:02:17]} 10. Bh4 {[%clk 0:02:51]}  a6 {[%clk 0:02:14]} 11. a3 {[%clk 0:02:46]}  b5 {[%clk 0:02:05]} 12. Ba2 {[%clk 0:02:45]}  Bb7 {[%clk 0:02:04]} 13. Rae1 {[%clk 0:02:42]}  c5 {[%clk 0:01:55]} 14. Qd1 {[%clk 0:02:04]}  c4 {[%clk 0:01:51]} 15. Bg3 {[%clk 0:01:56]}  Qb6 {[%clk 0:01:40]} 16. Bxd6 {[%clk 0:01:53]}  Qxd6 {[%clk 0:01:05]} 17. Qxd6 {[%clk 0:01:52]}  Bxd6 {[%clk 0:01:06]} 18. e5 {[%clk 0:01:52]}  Be7 {[%clk 0:00:58]} 19. exf6 {[%clk 0:01:49]}  Bxf6 {[%clk 0:00:59]} 20. Nd1 {[%clk 0:01:40]}  Rad8 {[%clk 0:00:57]} 21. Re2 {[%clk 0:01:31]}  Rd7 {[%clk 0:00:48]} 22. c3 {[%clk 0:01:27]}  Rfd8 {[%clk 0:00:45]} 23. Ne3 {[%clk 0:01:27]}  Rd2 {[%clk 0:00:45]} 24. Rfe1 {[%clk 0:01:24]}  Be4 {[%clk 0:00:18]} 25. Nf1 {[%clk 0:01:18]}  Rxe2 {[%clk 0:00:15]} 26. Rxe2 {[%clk 0:01:18]}  Bd3 {[%clk 0:00:15]} 27. Re1 {[%clk 0:01:18]}  Bf5 {[%clk 0:00:04]} 28. Bb1 {[%clk 0:01:14]}  Bxb1 {[%clk 0:00:03]} 29. Rxb1 {[%clk 0:01:15]}  Rd2 {[%clk 0:00:04]} 30. Nxd2 {[%clk 0:01:15]}  Bg5 {[%clk 0:00:02]} 31. Ne4 {[%clk 0:01:14]} 1-0


[Site "https://www.chess.com"]

[Event "Titled Tuesday Blitz March 08 Late 2022"]
[White "Rostovtsev, Dmitry"]
[Black "Tari, Aryan"]
[WhiteFideId "34278320"]
[BlackFideId "1510045"]
[WhiteElo "2359"]
[BlackElo "2567"]
[Result "1/2-1/2"]
[Round "06"]
[TimeControl "180+1"]
[Date "2022.03.08"]
[WhiteClock "0:00:06"]
[BlackClock "0:00:06"]

1. e4 {[%clk 0:03:00]}  c6 {[%clk 0:02:57]} 2. Nc3 {[%clk 0:03:00]}  d5 {[%clk 0:02:58]} 3. Nf3 {[%clk 0:03:01]}  Bg4 {[%clk 0:02:35]} 4. h3 {[%clk 0:03:01]}  Bxf3 {[%clk 0:02:36]} 5. Qxf3 {[%clk 0:03:01]}  e6 {[%clk 0:02:37]} 6. d3 {[%clk 0:03:01]}  Nf6 {[%clk 0:02:27]} 7. g3 {[%clk 0:03:00]}  Bc5 {[%clk 0:02:21]} 8. Bg2 {[%clk 0:02:59]}  O-O {[%clk 0:02:21]} 9. O-O {[%clk 0:02:59]}  a5 {[%clk 0:02:21]} 10. Rd1 {[%clk 0:02:56]}  a4 {[%clk 0:02:18]} 11. a3 {[%clk 0:02:56]}  Nbd7 {[%clk 0:02:07]} 12. d4 {[%clk 0:02:54]}  dxe4 {[%clk 0:02:07]} 13. Nxe4 {[%clk 0:02:53]}  Be7 {[%clk 0:02:07]} 14. c3 {[%clk 0:02:47]}  Nd5 {[%clk 0:02:02]} 15. Qe2 {[%clk 0:02:42]}  b5 {[%clk 0:02:02]} 16. h4 {[%clk 0:02:37]}  h6 {[%clk 0:01:59]} 17. h5 {[%clk 0:02:35]}  Qc7 {[%clk 0:01:58]} 18. Nd2 {[%clk 0:02:26]}  N7f6 {[%clk 0:01:56]} 19. Nf1 {[%clk 0:02:24]}  c5 {[%clk 0:01:52]} 20. Ne3 {[%clk 0:02:16]}  c4 {[%clk 0:01:02]} 21. Nxd5 {[%clk 0:02:03]}  exd5 {[%clk 0:01:03]} 22. Bf4 {[%clk 0:02:03]}  Bd6 {[%clk 0:01:02]} 23. Bxd6 {[%clk 0:01:59]}  Qxd6 {[%clk 0:01:03]} 24. Re1 {[%clk 0:01:54]}  Rae8 {[%clk 0:01:03]} 25. Qf3 {[%clk 0:01:54]}  Re6 {[%clk 0:01:00]} 26. Bh3 {[%clk 0:01:51]}  Re4 {[%clk 0:01:00]} 27. Bf5 {[%clk 0:01:51]}  Re7 {[%clk 0:00:58]} 28. Rxe7 {[%clk 0:01:42]}  Qxe7 {[%clk 0:00:59]} 29. g4 {[%clk 0:01:38]}  Re8 {[%clk 0:00:56]} 30. Kf1 {[%clk 0:01:33]}  Ne4 {[%clk 0:00:50]} 31. Bxe4 {[%clk 0:01:28]}  Qxe4 {[%clk 0:00:37]} 32. Qxe4 {[%clk 0:01:27]}  Rxe4 {[%clk 0:00:38]} 33. f3 {[%clk 0:01:27]}  Re3 {[%clk 0:00:37]} 34. Kf2 {[%clk 0:01:27]}  Rd3 {[%clk 0:00:37]} 35. Re1 {[%clk 0:01:23]}  f5 {[%clk 0:00:37]} 36. gxf5 {[%clk 0:01:07]}  Kf7 {[%clk 0:00:37]} 37. Ke2 {[%clk 0:01:06]}  Kf6 {[%clk 0:00:36]} 38. Rg1 {[%clk 0:01:04]}  b4 {[%clk 0:00:36]} 39. axb4 {[%clk 0:01:00]}  a3 {[%clk 0:00:37]} 40. bxa3 {[%clk 0:00:36]}  Rxc3 {[%clk 0:00:38]} 41. Rg6+ {[%clk 0:00:32]}  Kxf5 {[%clk 0:00:38]} 42. Rxg7 {[%clk 0:00:33]}  Rxa3 {[%clk 0:00:36]} 43. Rf7+ {[%clk 0:00:30]}  Kg5 {[%clk 0:00:31]} 44. Rd7 {[%clk 0:00:31]}  Kf4 {[%clk 0:00:29]} 45. Rf7+ {[%clk 0:00:29]}  Kg5 {[%clk 0:00:29]} 46. Rd7 {[%clk 0:00:28]}  Kf4 {[%clk 0:00:24]} 47. Rxd5 {[%clk 0:00:24]}  Ra2+ {[%clk 0:00:24]} 48. Kd1 {[%clk 0:00:25]}  Ke3 {[%clk 0:00:24]} 49. Rc5 {[%clk 0:00:16]}  Kd3 {[%clk 0:00:22]} 50. Kc1 {[%clk 0:00:16]}  c3 {[%clk 0:00:22]} 51. Kb1 {[%clk 0:00:16]}  Rb2+ {[%clk 0:00:22]} 52. Ka1 {[%clk 0:00:11]}  Rxb4 {[%clk 0:00:19]} 53. d5 {[%clk 0:00:12]}  c2 {[%clk 0:00:20]} 54. d6 {[%clk 0:00:11]}  Ra4+ {[%clk 0:00:06]} 55. Kb2 {[%clk 0:00:10]}  Rb4+ {[%clk 0:00:06]} 56. Ka2 {[%clk 0:00:06]}  Kd2 {[%clk 0:00:02]} 57. d7 {[%clk 0:00:04]}  Rd4 {[%clk 0:00:02]} 58. Kb2 {[%clk 0:00:05]}  Rxd7 {[%clk 0:00:01]} 59. Rxc2+ {[%clk 0:00:05]}  Ke3 {[%clk 0:00:02]} 60. Rc6 {[%clk 0:00:05]}  Kxf3 {[%clk 0:00:02]} 61. Rxh6 {[%clk 0:00:06]}  Kg4 {[%clk 0:00:03]} 62. Rh8 {[%clk 0:00:06]}  Kg5 {[%clk 0:00:03]} 63. h6 {[%clk 0:00:06]}  Kg6 {[%clk 0:00:04]} 64. Kc3 {[%clk 0:00:06]}  Rh7 {[%clk 0:00:04]} 65. Rxh7 {[%clk 0:00:06]}  Kxh7 {[%clk 0:00:05]} 66. Kd4 {[%clk 0:00:06]}  Kxh6 {[%clk 0:00:06]} 1/2-1/2


[Site "https://www.chess.com"]